Cogmind - Beta 16 @@@ ROGUE MODE // 2025.12.28 @ 18:41:36 Player: AlStar Result: Destroyed by NB-88N(z) with Makeshift Axe Performance ------------- Evolutions (4) 2000 Regions Visited (13) 2600 Robots Destroyed (69) 345 Value Destroyed (1773) 1773 Prototype IDs (28) 560 Alien Tech Used (0) 0 Bonus (1114) 1114 TOTAL SCORE: 8392 Bonus ------- Follower Combat Kills 35 Entered DSFs 500 Aligned with FarCom 300 Met Imprinter 300 Friendly Fire -21 Cogmind --------- Core Integrity 0/850 Matter 290/300 Energy 145/160 System Corruption 24% Temperature Cool (0) Movement Walking (135) Location -6/Zion Parts ------- > --- POWER (2) -------- Light Nuclear Core > --- PROPULSION (4) --- Carbon-fiber Leg Makeshift Leg Makeshift Leg Makeshift Leg > --- UTILITY (6) ------ Heat Sink Salvage Targeting Computer Weapon Cycler Component Analysis Suite Recalibrator > --- WEAPON (3) ------- Makeshift Axe > --- INVENTORY (5) ---- Makeshift Power Source Makeshift Leg Improved Hacking Suite Makeshift Shrapnel Gun Peak State ------------ > --- POWER ------------ Reinforced Deuterium Engine Fission Core > --- PROPULSION ------- Medium Treads Medium Treads Medium Treads Improved Medium Treads > --- UTILITY ---------- Improved Melee Analysis Suite Core Analyzer Layered Medium Armor Plating Medium Reflective Plating Focal Shield Force Field > --- WEAPON ----------- Chainsword Chainsword Chainsword > --- INVENTORY -------- Deuterium Engine Fission Core Improved Heat Sink Magnetic Acceleration Cannon Heavy Rocket Launcher [Rating: 67] Favorites ----------- Power Ion Engine Engine Ion Engine Power Core Fission Core Propulsion Medium Treads Treads Medium Treads Leg Thunder Leg Wheel Wheel Utility Improved Melee Analysis Suite Device Focal Shield Storage Medium Storage Unit Processor Improved Melee Analysis Suite Hackware Hacking Suite Protection Layered Medium Armor Plating Weapon Chainsword Energy Gun Pulse Rifle Energy Cannon Particle Cannon Ballistic Gun Assault Rifle Ballistic Cannon Magnetic Acceleration Cannon Launcher Rocket Launcher Slashing Weapon Chainsword Piercing Weapon Makeshift Spear Build | -11 -10 -10 -10 -9 -8 -7 -7 -7 -7 -6 -6 -6 -6 ------- Run | Yrd Mat Min Exi Min Mat Fac Was Fac DSF Fac Low Low Zio Slots Evolved 8 | . . . . . 4 2 . . . 2 . . . Power 1 | . . . . . 1 . . . . . . . . Propulsion 2 | . . . . . 1 . . . . 1 . . . Utility 4 | . . . . . 2 1 . . . 1 . . . Weapon 1 | . . . . . . 1 . . . . . . . Parts Attached 111 | 5 9 4 . . 8 7 3 3 7 8 4 9 44 Power 20 | 1 1 1 . . 3 . . 1 . 2 1 2 8 Engine 17 | 1 1 1 . . 3 . . 1 . 1 . 2 7 Core 3 | . . . . . . . . . . 1 1 . 1 Reactor . | . . . . . . . . . . . . . . Propulsion 35 | 2 1 2 . . 1 3 1 1 4 1 1 3 15 Treads 13 | . . . . . . . . . 3 1 1 3 5 Leg 16 | . . . . . . 3 1 1 1 . . . 10 Wheel 6 | 2 1 2 . . 1 . . . . . . . . Hover . | . . . . . . . . . . . . . . Flight . | . . . . . . . . . . . . . . Utility 32 | . 2 1 . . 3 3 . 1 . 5 2 4 11 Device 16 | . . . . . 1 1 . 1 . 2 . 1 10 Storage 3 | . 1 . . . 1 . . . . . . 1 . Processor 4 | . 1 . . . . 1 . . . 1 . . 1 Hackware 1 | . . . . . . . . . . 1 . . . Protection 8 | . . 1 . . 1 1 . . . 1 2 2 . Artifact . | . . . . . . . . . . . . . . Weapon 24 | 2 5 . . . 1 1 2 . 3 . . . 10 Energy Gun 5 | 2 1 . . . 1 . . . . . . . 1 Energy Cannon 2 | . 2 . . . . . . . . . . . . Ballistic Gun 3 | . 2 . . . . . . . . . . . 1 Ballistic Cannon 1 | . . . . . . . . . . . . . 1 Launcher 4 | . . . . . . . 2 . . . . . 2 Special Weapon . | . . . . . . . . . . . . . . Impact Weapon . | . . . . . . . . . . . . . . Slashing Weapon 7 | . . . . . . 1 . . 3 . . . 3 Piercing Weapon 2 | . . . . . . . . . . . . . 2 Special Melee Weapon . | . . . . . . . . . . . . . . Unidentified Prototypes 1 | . . . . . 1 . . . . . . . . Parts Lost 63 | . 4 . . . . . 5 . 5 . 2 7 40 Power 11 | . 1 . . . . . 1 . 1 . . . 8 Propulsion 17 | . 1 . . . . . 1 . 3 . . 2 10 Utility 20 | . . . . . . . 2 . . . 2 4 12 Weapon 15 | . 2 . . . . . 1 . 1 . . 1 10 Highest Loss Streak 21 | . 4 . . . . . 5 . 5 . 2 4 21 To Critical Strikes . | . . . . . . . . . . . . . . Average Backups 6 | 1 3 8 10 10 8 9 7 2 1 2 4 6 7 Power 1 | . 2 2 2 2 1 2 1 . . . 1 1 1 Propulsion . | . . 1 1 1 . 1 2 1 . . . . . Utility 2 | . . . 3 3 2 3 1 . . . 2 3 3 Weapon 1 | . 1 3 3 3 3 1 1 1 . 1 1 2 2 Tool/Special . | . . . . . . . . . . . . . . Unused Backups 16 | . 1 2 1 . 1 2 4 . . 2 . . 3 Power 5 | . 1 . . . 1 1 1 . . . . . 1 Propulsion . | . . . . . . . . . . . . . . Utility 6 | . . 1 . . . . 3 . . . . . 2 Weapon 5 | . . 1 1 . . 1 . . . 2 . . . Tool/Special . | . . . . . . . . . . . . . . Average Slot Usage (%) 92 | . 91 99 100 100 97 99 78 53 63 94 99 96 83 Engine 11 | . 13 14 14 14 17 15 11 13 10 6 6 10 10 Core 1 | . . . . . . . . . . 5 6 1 1 Treads 14 | . . . . . . . . . 4 26 26 25 19 Leg 2 | . . . . . . 8 20 23 13 . . . 5 Wheel 8 | . 27 28 28 28 27 14 . . . . . . . Device 9 | . . . . . 8 8 7 8 15 18 13 10 15 Storage 5 | . 11 14 14 14 9 7 4 . . . . 4 4 Processor 6 | . 11 9 . . . 6 7 7 7 7 13 8 5 Protection 8 | . . 4 14 14 17 15 9 . . 2 9 14 5 Energy Gun 1 | . 10 . . . 7 7 5 . . . . . . Energy Cannon 5 | . 5 28 28 28 9 7 1 . . . . . . Slashing Weapon 9 | . . . . . . 6 4 . 10 20 20 18 8 Peak Build Rating 67 | 5 10 13 14 14 28 53 54 31 38 62 63 67 58 Average Rating 41 | 3 6 10 13 14 23 45 41 27 31 56 61 59 49 On Entrance 28 | . 5 10 13 14 14 28 53 21 31 38 61 63 54 Avg Prop Armor Cover (%) 2 | . . . . . . 2 . . . . . . . Naked Turns 5 | . . . . . . . . . . . . . 5 Heaviest Build 71 | 7 23 27 27 27 41 49 48 21 22 41 45 71 66 Greatest Support 114 | 26 26 26 20 20 32 64 64 59 84 112 114 114 102 Greatest Overweight (x) 17 | . 1 1 1 1 1 1 . . 7 . . . 17 Average Overweight (x) . | . . . 1 1 . . . . . . . . . Largest Inventory Capacity 10 | 5 10 10 10 10 10 10 10 5 5 5 5 10 10 Average Capacity 8 | 5 9 10 10 10 10 10 8 5 5 5 5 8 8 Most Carried 10 | 3 7 10 10 10 10 10 10 3 4 5 5 9 10 Average Carried 6 | 1 3 8 10 10 8 9 7 2 1 2 4 7 7 Final Capacity 10 | 5 10 10 10 10 10 10 5 5 5 5 5 10 5 Final Carried 10 | 2 7 10 10 10 10 10 4 2 2 5 5 9 4 Class Distribution -------------------- 34% | Mutant 34% | Gladiator 14% | Derelict-Gladiator 9% | Scavenger-Mutant 3% | Skirmisher Dominant Class ---------------- Mutant | -10/Materials Mutant | -10/Mines Mutant | -10/Exiles Mutant | -9/Mines Skirmisher | -8/Materials Mutant | -7/Factory Mutant | -7/Waste Mutant | -7/Factory Gladiator | -7/DSF Gladiator | -6/Factory Gladiator | -6/Lower Caves Gladiator | -6/Lower Caves Derelict-Gladiator | -6/Zion Resources | -11 -10 -10 -10 -9 -8 -7 -7 -7 -7 -6 -6 -6 -6 ----------- Run | Yrd Mat Min Exi Min Mat Fac Was Fac DSF Fac Low Low Zio Matter Collected 1898 | 237 236 . . 40 116 19 164 133 39 64 166 95 589 Remotely . | . . . . . . . . . . . . . . Salvage Created 2697 | . 288 88 . 64 114 19 644 . . 64 224 448 744 Parts 131 | . 25 3 . 2 5 . . . . 3 20 13 60 Haulers Intercepted 2 | . 1 . . . 1 . . . . . . . . Recyclers Shooed . | . . . . . . . . . . . . . . Parts Field Recycled . | . . . . . . . . . . . . . . Retrieved Matter . | . . . . . . . . . . . . . . Parts Self-Destructed 36 | . . . . . . . . . . . 20 16 . Prevented . | . . . . . . . . . . . . . . Parts Restored . | . . . . . . . . . . . . . . Kills | -11 -10 -10 -10 -9 -8 -7 -7 -7 -7 -6 -6 -6 -6 ------- Run | Yrd Mat Min Exi Min Mat Fac Was Fac DSF Fac Low Low Zio Combat Hostiles Destroyed 38 | . 10 2 . 3 . . 3 . 1 1 6 7 5 Melee 20 | . . . . . . . 1 . 1 1 6 7 4 Guns 10 | . 10 . . . . . . . . . . . . Cannons 5 | . . 2 . 3 . . . . . . . . . AOE 3 | . . . . . . . 2 . . . . . 1 Classes Destroyed 17 | . 4 . . 2 1 1 1 . 1 1 2 1 3 Worker 1 | . . . . . . 1 . . . . . . . Builder 1 | . 1 . . . . . . . . . . . . Hauler 2 | . 1 . . . 1 . . . . . . . . Watcher 2 | . . . . . 2 . . . . . . . . Swarmer 13 | . 8 . . 1 . . . . . . 4 . . Grunt 8 | . 2 2 . . . . . . . . . 4 . Brawler 1 | . . . . . . . . . . . . 1 . Duelist 2 | . . . . 1 . . . . . . . 1 . Sentry 1 | . . . . . . . . . . 1 . . . Specialist 1 | . . . . . . . . . 1 . . . . Programmer 1 | . . . . . . . . . . . 1 . . Behemoth 2 | . . . . . . . . . . . 1 1 . Compactor 3 | . . . . . . . 3 . . . . . . Zionite 26 | . . . . . . . . . . . . . 26 Tinkerer 3 | . . . . . . . . . . . . . 3 Assembled 1 | . . . . 1 . . . . . . . . . Mutant 5 | . . . . . . . . . . . . . 5 Best Kill Streak 10 | . 5 1 . 2 1 1 1 . 1 1 4 3 10 Combat Bots Only 5 | . 5 1 . 2 . . 1 . 1 1 4 3 2 Max Kills in Single Turn 2 | . 1 1 . 1 1 1 1 . 1 1 1 1 2 Gunslinging . | . . . . . . . . . . . . . . Exploded 1 | . . . . . . . 1 . . . . . 1 Melee 1 | . . . . . . . 1 . 1 1 1 1 1 Uniques/NPCs Destroyed . | . . . . . . . . . . . . . . Combat | -11 -10 -10 -10 -9 -8 -7 -7 -7 -7 -6 -6 -6 -6 -------- Run | Yrd Mat Min Exi Min Mat Fac Was Fac DSF Fac Low Low Zio Hostile Shots Fired 831 | . 97 5 . 2 . . 4 . 78 72 58 120 395 Missed 254 | . 29 2 . 1 . . 1 . 41 25 10 21 124 Hits 577 | . 68 3 . 1 . . 3 . 37 47 48 99 271 Melee 49 | . . . . 1 . . 3 . . . . 7 38 Projectile 528 | . 68 3 . . . . . . 37 47 48 92 233 Critical Strikes 34 | . 3 1 . . . . 1 . 2 . 4 4 19 Actively Blocked 2 | . . . . . . . . . . . 1 1 . Part Disruptions 7 | . . . . . . . . . . . . . 7 Damage Taken 8510 | . 596 47 . 28 . 26 500 . 749 198 650 1465 4251 Core 1271 | . 144 . . . . . 15 . 243 21 90 136 622 Absorbed by Shields 1113 | . . . . . . . . . 225 121 288 335 144 Redirected to Shielding 160 | . . . . . . . . . . 6 111 43 . Ignored by Resistances 501 | . . . . . . . . . . 45 148 266 42 Regen/Repaired (Parts) 16 | . 16 . . . . . . . . . . . . Core Remaining (%) 76 | 100 . . . 42 100 . . . 63 . . . . Volleys Fired 123 | . 53 5 . 8 5 1 19 . 7 . . . 25 Largest 2 | . 2 2 . 2 2 2 2 . 1 . . . 2 Hottest 136 | . 136 136 . 136 131 131 131 . 33 . . . 94 Shots Fired 200 | . 91 10 . 16 10 2 33 . 6 . . . 32 Gun 114 | . 87 . . . 5 1 14 . . . . . 7 Cannon 62 | . 4 10 . 16 5 1 5 . . . . . 21 Launcher 24 | . . . . . . . 14 . 6 . . . 4 Special . | . . . . . . . . . . . . . . Kinetic 66 | . 41 . . . . . . . . . . . 25 Thermal 94 | . 34 10 . 16 10 2 19 . . . . . 3 Explosive 24 | . . . . . . . 14 . 6 . . . 4 Electromagnetic 16 | . 16 . . . . . . . . . . . . Robot Hit Streak 10 | . 8 2 . 2 3 4 10 . 5 . . . 6 Robot Miss Streak 4 | . 4 1 . 2 2 . 4 . 1 . . . 3 Penetration Max . | . . . . . . . . . . . . . . Secondary Targets 2 | . 2 . . . . . . . . . . . . Max Gunslinging Chain 1 | . 1 . . . . . . . . . . . . Shots Hit Robots 264 | . 50 5 . 9 5 1 26 . 6 3 17 45 97 Core Hits 102 | . 15 3 . 4 3 1 12 . 1 2 8 15 38 Critical Kills 1 | . . . . . 1 . . . . . . . . Critical Parts Destroyed . | . . . . . . . . . . . . . . Critical Strikes 20 | . . . . . 1 . . . . . 3 8 8 Meltdown 1 | . . . . . 1 . . . . . . . . Blast 1 | . . . . . . . . . . . . . 1 Sever 17 | . . . . . . . . . . . 3 8 6 Impale 1 | . . . . . . . . . . . . . 1 Melee Attacks 199 | . . . . . . . 3 . 1 3 20 55 117 Impact . | . . . . . . . . . . . . . . Slashing 179 | . . . . . . . 3 . 1 3 20 55 97 Piercing 20 | . . . . . . . . . . . . . 20 Sneak Attacks 3 | . . . . . . . . . . . . . 3 Combat Hostiles . | . . . . . . . . . . . . . . Follow-up Attacks 27 | . . . . . . . . . . . 2 15 10 Damage Inflicted 8515 | . 669 103 . 229 96 18 1306 . 274 109 631 1566 3514 Guns 889 | . 605 . . . 33 18 185 . . . . . 48 Cannons 884 | . 41 103 . 229 63 . 78 . . . . . 370 Explosions 1671 | . 23 . . . . . 974 . 233 . . . 441 Melee 5071 | . . . . . . . 69 . 41 109 631 1566 2655 Ramming . | . . . . . . . . . . . . . . Kinetic 716 | . 298 . . . . . . . . . . . 418 Thermal 919 | . 227 103 . 229 96 18 246 . . . . . . Explosive 1648 | . . . . . . . 974 . 233 . . . 441 Electromagnetic 144 | . 144 . . . . . . . . . . . . Impact 17 | . . . . . . . 17 . . . . . . Slashing 4715 | . . . . . . . 69 . 41 109 631 1566 2299 Piercing 356 | . . . . . . . . . . . . . 356 Highest Corruption 25 | . . . . . . . 25 25 25 . . . 24 Average Corruption 15 | . . . . . . . 16 25 25 . . . 12 Corruption Purged . | . . . . . . . . . . . . . . Corruption Blocked . | . . . . . . . . . . . . . . Effects 47 | . . . . . . . 10 4 7 . . . 26 Message Errors 11 | . . . . . . . 3 . 1 . . . 7 Matter Fused 9 | . . . . . . . 1 1 . . . . 7 Heat Flow Errors 6 | . . . . . . . . 1 . . . . 5 Energy Discharges 2 | . . . . . . . . . 1 . . . 1 Parts Rejected 2 | . . . . . . . 1 . . . . . 1 Data Loss (minor) 7 | . . . . . . . 1 2 2 . . . 2 Data Loss (major) 3 | . . . . . . . 2 . 1 . . . . Misfires 1 | . . . . . . . . . . . . . 1 Alerts 2 | . . . . . . . 1 . . . . . 1 Misdirections 2 | . . . . . . . 1 . 1 . . . . Weapon Failures 2 | . . . . . . . . . 1 . . . 1 Overload Shots . | . . . . . . . . . . . . . . Overflow Damage 254 | . . 1 . 5 . . . . 2 . 15 9 222 Projectiles 11 | . . 1 . 5 . . . . . . . . 5 Explosions 84 | . . . . . . . . . 2 . . . 82 Melee 159 | . . . . . . . . . . . 15 9 135 Knockbacks 4 | . . . . . . . . . . . . . 4 Impact . | . . . . . . . . . . . . . . Kinetic 4 | . . . . . . . . . . . . . 4 Secondary . | . . . . . . . . . . . . . . Self-Inflicted Damage 310 | . . . . . . . 102 . 189 . . . 19 Shots 12 | . . . . . . . 6 . 5 . . . 1 Rammed . | . . . . . . . . . . . . . . Targets Rammed . | . . . . . . . . . . . . . . Kicked . | . . . . . . . . . . . . . . Crushed . | . . . . . . . . . . . . . . Highest Temperature 345 | . 144 345 . 318 186 48 90 124 . . 147 164 265 Average Temperature 83 | . 63 151 . 165 86 29 14 72 . . 80 78 66 Received Heat Transfer 2112 | . 102 45 . . . . . . . 60 256 529 1120 Effects 2 | . . 1 . 1 . . . . . . . . . Energy Bleed 1 | . . 1 . . . . . . . . . . . Damage (minor) 1 | . . . . 1 . . . . . . . . . Siege Activations . | . . . . . . . . . . . . . . Martial Activations . | . . . . . . . . . . . . . . Shielding Activations . | . . . . . . . . . . . . . . Robots Disrupted . | . . . . . . . . . . . . . . Combat Hostiles . | . . . . . . . . . . . . . . Robots Corrupted . | . . . . . . . . . . . . . . Combat Hostiles . | . . . . . . . . . . . . . . Parts Fried . | . . . . . . . . . . . . . . Impact Corruptions . | . . . . . . . . . . . . . . Robots Melted 1 | . . . . . 1 . . . . . . . . Combat Hostiles . | . . . . . . . . . . . . . . Parts Melted 5 | . 1 1 . 1 1 . . . . . . . 1 Heat Transferred 1831 | . 499 185 . 407 185 37 518 . . . . . . Parts Sabotaged . | . . . . . . . . . . . . . . Parts Stolen . | . . . . . . . . . . . . . . Parts Stripped . | . . . . . . . . . . . . . . Power Chain Reactions 1 | . 1 . . . . . . . . . . . . Alert | -11 -10 -10 -10 -9 -8 -7 -7 -7 -7 -6 -6 -6 -6 ------- Run | Yrd Mat Min Exi Min Mat Fac Was Fac DSF Fac Low Low Zio Maximum Alert Level . | . . . . . . . . . . . . . . Low Security (%) 100 | 100 100 100 . 100 100 100 100 100 100 100 . . . Level 1 . | . . . . . . . . . . . . . . Level 2 . | . . . . . . . . . . . . . . Level 3 . | . . . . . . . . . . . . . . Level 4 . | . . . . . . . . . . . . . . Level 5 . | . . . . . . . . . . . . . . High Security . | . . . . . . . . . . . . . . Max Security . | . . . . . . . . . . . . . . Peak Influence 105 | . 105 40 . 68 10 10 11 14 31 30 . . . Initial 33 | . . 33 . . 10 . 2 . 5 12 . . . Average 12 | . 43 8 . 15 2 . 2 3 18 2 . . . Influence Increases 1035 | . 289 50 . 108 21 26 39 18 70 34 150 230 . Destroy 0b10 Robot/C 600 | . 200 40 . 60 . . . . 20 20 120 140 . Destroy 0b10 Robot/NC 35 | . 10 . . . 15 10 . . . . . . . Destroy Leader 118 | . 32 10 . . 6 . . . . 10 30 30 . Allied During Kill 3 | . . . . 3 . . . . . . . . . Successful Hack 50 | . 14 . . . . 14 . 18 . 4 . . . Disable Machine 45 | . 15 . . 15 . . . . 15 . . . . Destroy Structure 64 | . 3 . . . . 2 39 . 20 . . . . Lose Combat Pursuer 120 | . 15 . . 30 . . . . 15 . . 60 . Influence Decreases 1035 | . 203 136 . 80 49 19 46 10 53 59 150 221 9 Entered New Map 101 | . . 53 . . 18 . 5 . 3 13 . . 9 Time Decay 756 | . 165 83 . 60 31 19 41 10 . 46 130 171 . Lost Part 158 | . 38 . . . . . . . 50 . 20 50 . Lost Ally 20 | . . . . 20 . . . . . . . . . Squads Dispatched 3 | . . 1 . 1 . . . . . 1 . . . Investigation 1 | . . 1 . . . . . . . . . . . Extermination 1 | . . . . . . . . . . 1 . . . Reinforcement . | . . . . . . . . . . . . . . Assault 1 | . . . . 1 . . . . . . . . . Garrison . | . . . . . . . . . . . . . . Intercept . | . . . . . . . . . . . . . . Searches Triggered . | . . . . . . . . . . . . . . Construction Impeded . | . . . . . . . . . . . . . . Haulers Reinforced . | . . . . . . . . . . . . . . Active Scanning Responses . | . . . . . . . . . . . . . . Cargo Convoy Interrupts . | . . . . . . . . . . . . . . Stealth | -11 -10 -10 -10 -9 -8 -7 -7 -7 -7 -6 -6 -6 -6 --------- Run | Yrd Mat Min Exi Min Mat Fac Was Fac DSF Fac Low Low Zio Distress Signals 1 | . 1 . . . . . . . . . . . . Communications Jammed . | . . . . . . . . . . . . . . Distress Signals . | . . . . . . . . . . . . . . Times Spotted 110 | . 17 1 . 21 3 1 6 . 2 1 6 12 40 Peak Tracking Total 19 | . 4 1 . 19 1 1 4 . 2 1 4 4 8 Tactical Retreats 12 | . 1 . . 2 . . 1 . 1 . . 4 3 Traps | -11 -10 -10 -10 -9 -8 -7 -7 -7 -7 -6 -6 -6 -6 ------- Run | Yrd Mat Min Exi Min Mat Fac Was Fac DSF Fac Low Low Zio Traps Triggered 4 | . . . . . 3 1 . . . . . . . Indirectly . | . . . . . . . . . . . . . . Trap Hack Attempts . | . . . . . . . . . . . . . . Triggered . | . . . . . . . . . . . . . . Disarmed . | . . . . . . . . . . . . . . Reprogrammed . | . . . . . . . . . . . . . . Reused . | . . . . . . . . . . . . . . Traps Extracted . | . . . . . . . . . . . . . . Installed . | . . . . . . . . . . . . . . Triggered . | . . . . . . . . . . . . . . Machines | -11 -10 -10 -10 -9 -8 -7 -7 -7 -7 -6 -6 -6 -6 ---------- Run | Yrd Mat Min Exi Min Mat Fac Was Fac DSF Fac Low Low Zio Machines Disabled 5 | . 2 . . 1 . . . . 1 . . . 1 Max in Single Turn 1 | . 1 . . . . . . . 1 . . . 1 Garrison Access 1 | . . . . . . 1 . . . . . . . Machines Repaired . | . . . . . . . . . . . . . . Machines Dismantled . | . . . . . . . . . . . . . . Machines Sabotaged . | . . . . . . . . . . . . . . Overloaded Fab Kills . | . . . . . . . . . . . . . . Hacking | -11 -10 -10 -10 -9 -8 -7 -7 -7 -7 -6 -6 -6 -6 --------- Run | Yrd Mat Min Exi Min Mat Fac Was Fac DSF Fac Low Low Zio Machines Accessed 17 | . 4 1 1 . 2 3 . 3 . 3 . . . Terminals 9 | . 2 . . . 1 1 . 3 . 2 . . . Fabricators 1 | . . . . . . 1 . . . . . . . Repair Stations 1 | . 1 . . . . . . . . . . . . Recycling Units 3 | . 1 . . . 1 . . . . 1 . . . Scanalyzers . | . . . . . . . . . . . . . . Garrison Access 1 | . . . . . . 1 . . . . . . . Total Hacks 42 | . 15 1 1 . 3 7 . 7 . 8 . . . Successful 24 | . 8 1 1 . 1 4 . 3 . 6 . . . Failed 18 | . 7 . . . 2 3 . 4 . 2 . . . Catastrophic . | . . . . . . . . . . . . . . Database Lockouts . | . . . . . . . . . . . . . . Manual 19 | . 6 . 1 . 2 1 . 5 . 4 . . . Terminals 31 | . 12 . . . 2 3 . 7 . 7 . . . Fabricators 2 | . . . . . . 2 . . . . . . . Repair Stations 2 | . 2 . . . . . . . . . . . . Recycling Units 3 | . 1 . . . 1 . . . . 1 . . . Scanalyzers . | . . . . . . . . . . . . . . Garrison Access 2 | . . . . . . 2 . . . . . . . Terminal Hacks 10 | . 3 1 1 . . 1 . 1 . 3 . . . Part Schematic 1 | . . . . . . . . . . 1 . . . Prototype ID Bank 2 | . 1 . . . . . . . . 1 . . . Open Door 1 | . . 1 . . . . . . . . . . . Open DSF 1 | . . . . . . . . 1 . . . . . Branch Access Points 1 | . 1 . . . . . . . . . . . . Dispatch Records 1 | . 1 . . . . . . . . . . . . Zone Layout 2 | . . . . . . 1 . . . 1 . . . Proto ID Catalog 1 | . . . 1 . . . . . . . . . . Fabricator Hacks 1 | . . . . . . 1 . . . . . . . Build 1 | . . . . . . 1 . . . . . . . Repair Station Hacks 2 | . 2 . . . . . . . . . . . . Scan Component 1 | . 1 . . . . . . . . . . . . Repair 1 | . 1 . . . . . . . . . . . . Recycling Unit Hacks 3 | . 1 . . . 1 . . . . 1 . . . Report Inventory 3 | . 1 . . . 1 . . . . 1 . . . Scanalyzer . | . . . . . . . . . . . . . . Garrison Access Hacks 1 | . . . . . . 1 . . . . . . . Seal Access 1 | . . . . . . 1 . . . . . . . Unauthorized Hacks 7 | . 2 . . . . 1 . 2 . 2 . . . Terminals 7 | . 2 . . . . 1 . 2 . 2 . . . Botnet 7 | . 2 . . . . 1 . 2 . 2 . . . Fabricators . | . . . . . . . . . . . . . . Repair Stations . | . . . . . . . . . . . . . . Recycling Units . | . . . . . . . . . . . . . . Scanalyzers . | . . . . . . . . . . . . . . Garrison Access . | . . . . . . . . . . . . . . Data Cores Recovered . | . . . . . . . . . . . . . . Used . | . . . . . . . . . . . . . . Hacking Detections 11 | . 2 . . . 2 2 . 3 . 2 . . . Full Trace Events . | . . . . . . . . . . . . . . Feedback Events . | . . . . . . . . . . . . . . Feedback Blocked . | . . . . . . . . . . . . . . Robot Schematics Acquired . | . . . . . . . . . . . . . . Robots Built . | . . . . . . . . . . . . . . Authchips . | . . . . . . . . . . . . . . Time . | . . . . . . . . . . . . . . Total Robot Build Rating . | . . . . . . . . . . . . . . Part Schematics Acquired 1 | . . . . . . . . . . 1 . . . Parts Built 2 | . . . . . . 2 . . . . . . . Authchips . | . . . . . . . . . . . . . . Time 106 | . . . . . . 106 . . . . . . . Total Part Build Rating 12 | . . . . . . 12 . . . . . . . Part Studies Acquired . | . . . . . . . . . . . . . . Parts Repaired 1 | . 1 . . . . . . . . . . . . Time 26 | . 26 . . . . . . . . . . . . Parts Recycled . | . . . . . . . . . . . . . . Recycled Matter . | . . . . . . . . . . . . . . Retrieved Matter . | . . . . . . . . . . . . . . Retrieved Components . | . . . . . . . . . . . . . . Parts Scanalyzed . | . . . . . . . . . . . . . . Part Schematics Acquired . | . . . . . . . . . . . . . . Parts Damaged . | . . . . . . . . . . . . . . Bothacking | -11 -10 -10 -10 -9 -8 -7 -7 -7 -7 -6 -6 -6 -6 ------------ Run | Yrd Mat Min Exi Min Mat Fac Was Fac DSF Fac Low Low Zio Used RIF Installer . | . . . . . . . . . . . . . . Robots Hacked . | . . . . . . . . . . . . . . Non-combat . | . . . . . . . . . . . . . . Combat . | . . . . . . . . . . . . . . Robot Hacks Applied . | . . . . . . . . . . . . . . Relay Couplers Released . | . . . . . . . . . . . . . . Fabnet Peak Effective % . | . . . . . . . . . . . . . . Robots Rewired 1 | . . . . . . 1 . . . . . . . Allies Hacked . | . . . . . . . . . . . . . . Hacks Repelled . | . . . . . . . . . . . . . . Allies | -11 -10 -10 -10 -9 -8 -7 -7 -7 -7 -6 -6 -6 -6 -------- Run | Yrd Mat Min Exi Min Mat Fac Was Fac DSF Fac Low Low Zio Total Allies 2 | . . . . 1 . 1 . . . . . . . Largest Group 1 | . . . . 1 . 1 1 . . . . . . Highest-Rated Group 31 | . . . . 31 . 25 22 . . . . . . Highest-Rated Ally 31 | . . . . 31 . 25 22 . . . . . . Total Orders . | . . . . . . . . . . . . . . Ally Attacks 13 | . . . . 10 . 1 2 . . . . . . Total Damage 162 | . . . . 82 . 71 9 . . . . . . Kills 2 | . . . . 1 . 1 . . . . . . . Allies Corrupted . | . . . . . . . . . . . . . . Allies Melted . | . . . . . . . . . . . . . . Intel | -11 -10 -10 -10 -9 -8 -7 -7 -7 -7 -6 -6 -6 -6 ------- Run | Yrd Mat Min Exi Min Mat Fac Was Fac DSF Fac Low Low Zio Active Infowar (turns) 1275 | . 370 235 . . 226 37 . . . . . . 407 Sensors 522 | . . . . . 226 37 . . . . . . 259 IFF 248 | . . . . . . . . . . . . . 248 T.N.C. 605 | . 370 235 . . . . . . . . . . . ECM 115 | . . . . . . . . . . . . . 115 Robot Analysis Total . | . . . . . . . . . . . . . . Derelict Logs Recovered 6 | . . 2 . . . . . . . . 2 . 2 Drone Launches . | . . . . . . . . . . . . . . Drone Recoveries . | . . . . . . . . . . . . . . Exploration | -11 -10 -10 -10 -9 -8 -7 -7 -7 -7 -6 -6 -6 -6 ------------- Run | Yrd Mat Min Exi Min Mat Fac Was Fac DSF Fac Low Low Zio Turns Passed 5895 | 44 434 360 314 329 229 293 196 62 107 542 616 1079 1290 Spaces Moved 3641 | 37 286 353 329 275 187 134 111 49 50 320 353 586 571 Core 11 | 2 . . . . . . . . 3 . . . 6 Treads 1732 | . . . . . . . . . 13 320 353 586 460 Legs 385 | . . . . . . 86 111 49 34 . . . 105 Wheels 1513 | 35 286 353 329 275 187 48 . . . . . . . Hover . | . . . . . . . . . . . . . . Flight . | . . . . . . . . . . . . . . Fastest Speed 50 | 50 90 90 95 95 83 98 120 120 120 160 160 160 50 Average Speed 130 | 87 90 93 95 95 96 126 120 120 147 160 160 161 157 Slowest Speed 900 | 90 95 95 95 95 98 170 120 120 400 160 160 163 900 Overloaded Moves . | . . . . . . . . . . . . . . Propulsion Burnouts . | . . . . . . . . . . . . . . Robots Hopped . | . . . . . . . . . . . . . . Potential Cave-ins 11 | . . . . . . . 11 . . . . . . Cave-ins Triggered 1 | . . . . . . . 1 . . . . . . Exploration Rate (%) 42 | 3 55 80 41 47 21 4 79 4 47 9 62 84 56 Regions Visited 13 Branch Regions 6 Pre-discovered Areas 5 | . . 2 . . . . . . . . 2 . 1 Known Exits Taken 2 | . 1 . . . . . . 1 . . . . . Unknown Exits Taken 8 | 1 . 1 1 1 1 . . . . 1 1 1 . Scrap Searched 14 | . . . . 1 . . . . . . 6 5 2 Spaces Dug . | . . . . . . . . . . . . . . Terrain Destroyed 99 | . 2 . . . . . 71 . 20 . . . 6 Melee . | . . . . . . . . . . . . . . Projectile . | . . . . . . . . . . . . . . AOE 99 | . 2 . . . . . 71 . 20 . . . 6 Terrain Rammed . | . . . . . . . . . . . . . . Walls Destroyed . | . . . . . . . . . . . . . . Machines Disabled . | . . . . . . . . . . . . . . Actions | -11 -10 -10 -10 -9 -8 -7 -7 -7 -7 -6 -6 -6 -6 --------- Run | Yrd Mat Min Exi Min Mat Fac Was Fac DSF Fac Low Low Zio Total 4381 | 48 371 374 330 326 222 257 138 52 75 347 378 658 805 Wait 155 | . 1 . . 44 3 98 . . . . 1 8 . Move 3629 | 36 285 352 328 274 186 134 110 48 49 319 352 585 571 Hop . | . . . . . . . . . . . . . . Pick Up 127 | 7 16 8 1 . 7 9 1 1 9 12 3 12 41 Fast Attach 11 | . . . . . 8 . . . . 1 . 1 1 Attach 94 | 5 10 1 . . 5 3 2 3 9 5 2 6 43 Detach 2 | . . . . . . . . . . . . . 2 Swap 29 | . 2 3 . . 3 4 2 . . 2 2 4 7 Drop 42 | . 4 5 1 . 5 7 1 . . 5 1 5 8 Fire 123 | . 53 5 . 8 5 1 19 . 7 . . . 25 Melee 168 | . . . . . . . 3 . 1 3 17 37 107 Ram . | . . . . . . . . . . . . . . Kick . | . . . . . . . . . . . . . . Crush . | . . . . . . . . . . . . . . Escape Stasis . | . . . . . . . . . . . . . . Rewire 1 | . . . . . . 1 . . . . . . . Trap . | . . . . . . . . . . . . . . Miscellaneous . | . . . . . . . . . . . . . . Route ------- -11/Scrapyard -10/Materials (discovered 2 exits: [*Mat] / *Min) -10/Mines (discovered 2 exits: [*Mat] / *Exi) -10/Exiles -9/Mines -8/Materials -7/Factory -7/Waste -7/Factory -7/DSF -6/Factory -6/Lower Caves -6/Lower Caves (discovered 2 exits: [*Fac] / [*Zio]) -6/Zion (discovered 1 exit: Dee) History --------- Turn | Location | Event 10 | -11/Scrapyard | Discovered new exit (range 14) 45 | -11/Scrapyard | Entered Materials 51 | -10/Materials | Identified exit to Mines 181 | -10/Materials | Repaired Com. Wheel 231 | -10/Materials | Discovered new exit (range 16) 307 | -10/Materials | Build established: Mutant 358 | -10/Materials | Core integrity fell below 50% 361 | -10/Materials | Lost 4 parts (1p1n2w) 479 | -10/Materials | Entered Mines 540 | -10/Mines | Received a Rocket Launcher from a helpful Derelict 618 | -10/Mines | Discovered new exit (range 11) 710 | -10/Mines | Met a Derelict shopkeep closing up shop 789 | -10/Mines | Found a damaged Exp. Sensor Array with a note attached 791 | -10/Mines | Found Prototype Device 805 | -10/Mines | Learned location of Mines (-9) 835 | -10/Mines | Deemed a non-threat by the Exiles lab entrance 835 | -10/Mines | Discovered new exit (range 5) 839 | -10/Mines | Entered Exiles 855 | -10/Exiles | Discovered new exit (range 15) 866 | -10/Exiles | Met 8R-AWN 883 | -10/Exiles | Met EX-HEX 909 | -10/Exiles | Met EX-BIN 1030 | -10/Exiles | Aligned with FarCom system 1031 | -10/Exiles | Given EX-Vault access code 1053 | -10/Exiles | Opened EX-Vault 1059 | -10/Exiles | Found Longsword +1 1080 | -10/Exiles | Warned to stay clear of 0b10 Research branches 1153 | -10/Exiles | Left Exiles lab with Longsword +1 1153 | -10/Exiles | Entered Mines 1154 | -9/Mines | Met a Derelict testing a Signal Generator 1169 | -9/Mines | Met a Derelict bent on vengeance 1352 | -9/Mines | Assembled infested the area 1458 | -9/Mines | Discovered new exit (range 6) 1482 | -9/Mines | Entered Materials 1482 | -8/Materials | Evolved 4 slots: Power x1, Propulsion x1, Utility x2 1680 | -8/Materials | Discovered new exit (range 11) 1711 | -8/Materials | Entered Factory 1711 | -7/Factory | Evolved 2 slots: Utility x1, Weapon x1 1867 | -7/Factory | Fabricated Thunder Leg (x2) 2004 | -7/Factory | Sucked down chute 2004 | -7/Factory | Entered Waste 2009 | -7/Waste | 1 allies followed down the chute 2019 | -7/Waste | EMP discharged 2019 | -7/Waste | System corruption reached 10% 2024 | -7/Waste | Spotted C-40 Crusher 2027 | -7/Waste | Spotted C-40 Crusher 2046 | -7/Waste | Destroyed C-40 Crusher 2064 | -7/Waste | Spotted C-40 Crusher 2089 | -7/Waste | Destroyed C-40 Crusher 2095 | -7/Waste | Spotted C-40 Crusher 2098 | -7/Waste | Spotted C-40 Crusher 2119 | -7/Waste | EMP discharged 2125 | -7/Waste | Crushed by Compactor (1 part destroyed, 1 dropped) 2128 | -7/Waste | Crushed by Compactor (1 part destroyed, 1 dropped) 2129 | -7/Waste | Destroyed C-40 Crusher 2131 | -7/Waste | Crushed by falling debris 2133 | -7/Waste | Spotted C-40 Crusher 2133 | -7/Waste | Crushed by Compactor (1 part destroyed, 1 dropped) 2164 | -7/Waste | Lost 5 parts (1p1n2u1w) 2189 | -7/Waste | Discovered new exit (range 10) 2200 | -7/Waste | Entered Factory 2262 | -7/Factory | Identified exit to DSF 2262 | -7/Factory | Entered DSF 2285 | -7/DSF | Additional patrols routed to DSF 2326 | -7/DSF | Discovered new exit (range 16) 2363 | -7/DSF | Lost 5 parts (1p3n1w) 2369 | -7/DSF | Entered Factory 2369 | -6/Factory | Evolved 2 slots: Propulsion x1, Utility x1 2608 | -6/Factory | Build established: Gladiator 2633 | -6/Factory | Discovered new exit (range 14) 2911 | -6/Factory | Entered Lower Caves 3144 | -6/Lower Caves | Spotted B-75 Beast 3189 | -6/Lower Caves | Destroyed B-75 Beast 3297 | -6/Lower Caves | Learned location of Zion (-6) 3493 | -6/Lower Caves | Encountered a Warlord checkpoint 3499 | -6/Lower Caves | Discovered new exit (range 9) 3527 | -6/Lower Caves | Entered another Lower Caves area 3528 | -6/Lower Caves | Encountered a Warlord checkpoint 3553 | -6/Lower Caves | Spotted B-75 Beast 3593 | -6/Lower Caves | Discovered new exit (range 9) 3686 | -6/Lower Caves | Destroyed B-75 Beast 4325 | -6/Lower Caves | Lost 4 parts (2n1u1w) 4568 | -6/Lower Caves | Discovered new exit (range 7) 4606 | -6/Lower Caves | Entered Zion 4616 | -6/Zion | Build established: Derelict-Gladiator 4732 | -6/Zion | Learned Factory interactive machine intel 4779 | -6/Zion | Identified exit to Deep Caves 4795 | -6/Zion | Learned location of Quarantine (-3) 5045 | -6/Zion | Learned Factory emergency access door positions 5100 | -6/Zion | Rebuked by Imprinter 5136 | -6/Zion | Attempted to imprint without authorization 5136 | -6/Zion | Attacked by Zionites 5240 | -6/Zion | Lost 10 parts (1p4n4u1w) 5450 | -6/Zion | Core integrity fell below 50% 5508 | -6/Zion | System corruption reached 10% 5588 | -6/Zion | Core integrity fell below 20% 5648 | -6/Zion | Lost 21 parts (5p5n5u6w) 5879 | -6/Zion | Lost 4 parts (1u3w) 5896 | -6/Zion | Destroyed by NB-88N(z) with Makeshift Axe Last Messages --------------- 05848_ Destroyed Lgt. Angular Momentum Engine. 05848_ Mak. Sword destroyed. 05850_ CA-S9J(z) destroyed. 05852_ System corrupted: Component data lost. 05865_ XQ-IFL(z) destroyed. 05867_ Acquired 7 matter. 05870_ Acquired Mak. Leg. 05874_ Dropped Mak. Leg. 05875_ DK9Q:HUUD8KXNSWINMEC W4= 05878_ Acquired Mak. Leg. 05881_ Acquired 15 matter. NB-88N(z) bursts out of the Twisted Machinery. 05884_ NB-88N(z) pulls a Mak. Axe out of the Twisted Machinery. 05884_ Acquired Mak. Shrapnel Gun. 05890_ Lgt. Angular Momentum Engine destroyed. 05891_ Destroyed Energy Filter. LU-T96(z) bursts out of the Twisted Machinery. 05896_ LU-T96(z) pulls a Mak. Axe out of the Twisted Machinery. Map ----- +----------------------------------------------------+ | ???????????????????????#### # " "" | | ?????????????????????????# """ | | ?????????????????????????### """ """" | | ???????????????????????????# # """ """ | | ???????????????????????????#### """" "" | | ??????????????????????####????#"" """" """ " | | ??????????????????????" "##??#"#" "" """"?" | | ????????????????????#"" "##?###" " """"?? | | ?????????????????????! ""#####"" """##?? | | ??????????????????????" ""#"""""" """##??? | | ????????????????????##" "####"" """#???? | | ????????????????????# ## #""" "" """#???? | | ????????????????????# #"" % """" #""#???? | | ???????????????????## ""c """"" #""#???? | | ???????????????????#""#" " """"" #?##???? | | ???????????????????#""""" """ #?##???? | | ???????????????????#"" "" #""##??? | | ???????????????????##" #"""#??? | | ???????????????????#""" """#???? | | ???????????????????##"""" """ """#???? | | ????????????????????#"#""" """"" """#???? | | ????????????????????####" """" #""#???? | | ???????????????????????##" """ """##??? | | ???????????????#######?#""= "" """"#??? | | ?????????#######"""#"### z"== "" #"""#??? | | ##########"#""""""""""##%@%" """ ""###??? | | """""""" ##"" "" %z%!!" """ """#???? | | """""""" #""" %% =*=% "" "" #"##???? | | #"#" ! *[ " "" #""#???? | | """" ##" [ " "" #"##???? | | """"" "% """""" """####? | | """" = ""### =% """"" """"""## | | """"" =! "##?# """ ""#""#"# | | """" ###= ##?# " """""""" | | ## " !! #?# | | """""""" ##"" % [####" " " | | """""""" ##" = #"##"" " | | ############ *"#?#"" """"""""""" | | ?????#####""# #"#?#"" | | ????##"""####* [#"##??""" "" | | ????#" #""#????" """"""""""""""""""" | | ????#" #"##????? ""###""###""""""""" | | ????#" = #"#?????? "" ?????""#??""" ""#" | | ????## !#### #"#???????"? ??????????#" """ | | ?????#[ #??######?????????????????????????" """ | | ###### ######?????????????????????????????????"" | | """"""[ """"""??????????????????????????????????? | | #####"! !"######?????????????????????????????????? | | " "|[ " " #?????????????????????????????????? | | " % "" #?????????????????????????????????? | +----------------------------------------------------+ Best States ------------- Heat Dissipation 61 Energy Generation 31 Energy Capacity 500 Matter Stores 300 Matter Capacity 300 Sight Range 16 Robot Scan Range 16 Terrain Scan Density 10 ECM Strength 2 Additional Mass Support 6 Armor Coverage 675 Resistance: KI 20 Resistance: TH 15 Resistance: EM 15 Power Shielding 66 Propulsion Shielding 33 Weapon Cycling 15 Evasion (%) 70 Melee Accuracy 6 Core Analysis 6 Recoil Reduction 4 Salvage Targeting 1 Offensive Hacking 10 Item Schematics ----------------- Antigrav System | -6/Factory | Hacked Robot Schematics ------------------ None Fabricated ------------ Thunder Leg | x2 | -7/Factory | Preloaded Repaired ---------- Com. Wheel | 46% | -10/Materials Studied --------- None Alien Tech Used ----------------- None Achievements -------------- Hydra That Tickles Challenges ------------ None Game ------ Seed CryofiberSensorBooster Manual? 0 Play Time 01:18:22 Cumulative 104.3 hours Start 2025.12.28 @ 17:16:47 End 2025.12.28 @ 18:41:36 Sessions 1 Manual Loads 0 Difficulty Rogue Special Mode None Game No. 75 Rogue 75 Adventurer 0 Explorer 0 Win Type - Total 0 Types 0/0/0/0/0/0/0/0/0/0 Lore% 28 Gallery% 43 Achievement% 25 Wizard Run 0 Options --------- Layout 1 ASCII 0 Keyboard 0 Movement Mouse Keybinds 0 Fullscreen 0 Font 28/SmallcapsGlow Map View 59x39 Zoom Use 0% Tactical HUD 1 Map Filters NONE Filters NONE Steam 1 RUN: 529234e8-5257-4dd9-bb80-3ca70d0990bc